bitfinex/quotes_SOLUSD_20250219
["timestamp","ask_amount","ask_price","bid_price","bid_amount"]
[1739997469174,92.71593206,169.09,169.03,9.74893206]
[1739997469369,92.71593206,169.09,169.03,0.063]
[1739997469568,92.71593206,169.09,169.03,9.74893206]
[1739997470482,92.71593206,169.09,169.04,5.9157]
[1739997471588,9.68593206,169.08,169.03,5.979]
[1739997472267,83.03,169.09,169.03,5.979]
[1739997472268,92.71593206,169.09,169.03,5.979]
[1739997473685,92.71593206,169.09,169.03,15.66493206]
[1739997474066,92.71593206,169.09,169.03,0.063]
[1739997474272,9.68593206,169.05,169.03,0.063]
[1739997475175,9.68593206,169.06,169.03,0.063]
[1739997482285,92.68593206,169.08,169.03,0.063]
[1739997482495,83.0,169.08,169.03,0.063]
[1739997482788,83.0,169.08,169.04,9.68593206]
[1739997483181,83.0,169.08,169.03,0.063]
[1739997483182,83.0,169.08,169.03,9.74893206]
[1739997483374,9.68593206,169.06,169.03,0.063]
[1739997484094,9.68593206,169.06,169.0,15.46573206]
[1739997484396,15.60103206,169.06,169.0,15.46573206]
[1739997485295,83.0,169.05,169.0,9.68593206]
[1739997485503,9.68593206,169.02,168.97,1.5416]
[1739997485672,92.68593206,169.01,168.94,109.50793206]
[1739997486192,83.0,169.01,168.95,9.68593206]
[1739997486399,83.0,169.01,168.96,9.68593206]
[1739997486696,83.0,169.01,168.97,9.68593206]
[1739997487084,83.0,169.01,168.96,9.68593206]
[1739997487897,83.0,169.01,168.97,5.9182]
[1739997488108,83.0,169.01,168.97,15.60413206]
[1739997488318,83.0,169.01,168.98,9.68593206]
[1739997488608,9.68593206,169.0,168.94,109.50803206]
[1739997488796,9.68593206,168.98,168.94,93.903]
[1739997488990,9.68593206,168.99,168.94,93.903]
[1739997489410,9.68593206,168.96,168.94,0.063]
[1739997490313,9.68593206,168.95,168.94,0.063]
[1739997490687,28.33558092,168.95,168.94,0.063]
[1739997491023,165.63558092,168.95,168.94,0.063]
[1739997491386,28.33558092,168.95,168.94,0.063]
[1739997491603,32.93558092,168.95,168.94,0.063]
[1739997491806,33.93558092,168.95,168.94,0.063]
[1739997492010,40.85448092,168.95,168.94,0.063]
[1739997492183,40.64964886,168.93,168.92,0.063]
[1739997492512,50.33558092,168.93,168.92,0.063]
[1739997493315,29.68593206,168.93,168.92,0.063]
[1739997493886,9.68593206,168.93,168.92,0.063]
[1739997494103,9.68593206,168.94,168.92,0.063]
[1739997494613,9.68593206,168.93,168.92,0.063]
[1739997495699,9.68593206,168.93,168.86,9.61193206]
[1739997495894,92.68593206,168.92,168.85,15.60833206]
[1739997496088,9.68593206,168.9,168.83,9.68593206]
[1739997496296,9.68593206,168.89,168.82,15.60933206]
[1739997496507,92.68593206,168.88,168.82,15.60933206]
[1739997496695,98.18251611,168.88,168.82,21.10591611]
[1739997497214,83.0,168.87,168.82,5.9234]
[1739997497909,83.0,168.86,168.8,29.15681611]
[1739997498114,83.0,168.86,168.81,15.18251611]
[1739997498295,83.0,168.86,168.83,15.18251611]
[1739997499021,83.0,168.86,168.85,15.18251611]
[1739997499320,83.0,168.86,168.85,21.10491611]
[1739997500209,83.0,168.86,168.84,15.18251611]
[1739997500404,83.0,168.9,168.85,15.18251611]
[1739997500597,83.0,168.9,168.87,15.18251611]
[1739997500797,15.18251611,168.89,168.83,15.18251611]
[1739997500996,98.18251611,168.88,168.82,15.18251611]
[1739997502396,15.18251611,168.87,168.81,15.18251611]
[1739997502906,83.0,168.86,168.81,15.18251611]
[1739997503100,83.0,168.86,168.82,15.18251611]
[1739997503616,83.0,168.86,168.82,21.10581611]
[1739997503816,83.0,168.86,168.83,15.18251611]
[1739997504119,83.0,168.86,168.84,15.18251611]
[1739997504505,15.18251611,168.91,168.85,15.18251611]
[1739997504506,98.18251611,168.91,168.85,15.18251611]
[1739997504695,83.0,168.93,168.88,15.18251611]
[1739997504900,83.0,168.93,168.89,15.18251611]
[1739997505725,83.0,168.93,168.9,5.9206]
[1739997506227,83.0,168.96,168.91,15.18251611]
[1739997506798,98.18251611,168.96,168.89,15.18251611]
[1739997507304,15.18251611,168.93,168.87,21.10411611]
[1739997507500,15.18251611,168.93,168.86,15.18251611]
[1739997507501,83.0,168.92,168.86,15.18251611]
[1739997507826,83.0,168.92,168.85,6.3118]
[1739997507827,98.18251611,168.91,168.85,6.3118]
[1739997508037,98.18251611,168.91,168.85,12.2341]
[1739997508223,98.18251611,168.91,168.85,6.3118]
[1739997508710,98.18251611,168.91,168.85,27.41671611]
[1739997508906,83.0,168.9,168.85,27.41671611]
[1739997510407,98.18251611,168.9,168.83,15.18251611]
[1739997510630,15.18251611,168.88,168.83,5.9229]
[1739997510813,83.0,168.89,168.83,5.9229]
[1739997510814,15.18251611,168.87,168.83,5.9229]
[1739997511132,83.0,168.89,168.83,5.9229]
[1739997511133,98.18251611,168.89,168.83,5.9229]
[1739997512327,98.18251611,168.89,168.83,21.10541611]
[1739997512704,98.18251611,168.89,168.83,5.9229]
[1739997513822,98.18251611,168.89,168.83,15.18251611]
[1739997514333,98.18251611,168.89,168.82,21.10591611]
[1739997514523,83.0,168.88,168.82,21.10591611]
[1739997516818,98.18251611,168.88,168.82,5.9234]
[1739997517518,15.18251611,168.85,168.8,5.9869]
[1739997517829,83.0,168.84,168.8,5.9869]
[1739997518047,83.0,168.83,168.8,0.063]
[1739997518229,98.18251611,168.82,168.8,0.063]
[1739997518530,83.0,168.82,168.8,0.063]
[1739997523135,83.0,168.81,168.8,0.063]
[1739997523538,33.83216497,168.81,168.8,0.063]
[1739997524045,15.18251611,168.81,168.8,0.063]
[1739997524244,5.9232,168.83,168.8,0.063]
[1739997524450,15.18251611,168.82,168.8,0.063]
[1739997527045,18.64964886,168.83,168.8,0.063]
[1739997527046,15.18251611,168.81,168.8,0.063]
[1739997527245,15.18251611,168.82,168.8,0.063]
[1739997529951,171.13216497,168.81,168.8,0.063]
[1739997530258,137.3,168.81,168.8,0.063]
[1739997531045,152.48251611,168.81,168.8,0.063]
[1739997532036,171.13216497,168.81,168.8,0.063]
[1739997532235,175.73216497,168.81,168.8,0.063]
[1739997532433,175.73216497,168.81,168.74,11.89645622]
[1739997532731,15.18251611,168.8,168.74,11.89645622]
[1739997533049,15.18251611,168.8,168.74,27.07897233]
[1739997533351,98.18251611,168.8,168.74,27.07897233]
[1739997533935,18.64964886,168.78,168.73,15.24551611]
[1739997534141,220.3,168.79,168.73,0.063]
[1739997534142,15.18251611,168.77,168.73,0.063]
[1739997534340,83.0,168.76,168.73,0.063]
[1739997534926,83.0,168.76,168.73,5.9894]
[1739997537151,83.0,168.76,168.73,0.063]
[1739997538229,33.83216497,168.74,168.73,0.063]
[1739997541855,177.05836497,168.74,168.73,0.063]
[1739997542040,171.13216497,168.74,168.73,0.063]
[1739997542945,2.89862818,168.77,168.73,0.063]
[1739997542946,141.9,168.77,168.73,0.063]
[1739997543149,137.3,168.77,168.73,15.24551611]
[1739997543353,137.3,168.79,168.73,15.24551611]
[1739997543745,152.48251611,168.79,168.73,15.24551611]
[1739997544147,152.48251611,168.79,168.73,21.17201611]
[1739997544462,152.48251611,168.79,168.74,15.18251611]
[1739997544463,137.3,168.79,168.74,15.18251611]
[1739997546274,15.18251611,168.78,168.73,0.063]
[1739997546472,15.18251611,168.76,168.73,0.063]
[1739997546636,15.18251611,168.78,168.73,5.9895]
[1739997546836,137.3,168.79,168.74,15.18251611]
[1739997547237,137.3,168.79,168.78,15.18251611]
[1739997547238,83.0,168.79,168.78,15.18251611]
[1739997547543,137.3,168.82,168.78,15.18251611]
[1739997547544,83.0,168.81,168.78,15.18251611]
[1739997547738,83.0,168.81,168.79,15.18251611]
[1739997547972,83.0,168.81,168.78,15.18251611]
[1739997548470,83.0,168.81,168.77,21.10761611]
[1739997548953,83.0,168.81,168.78,15.18251611]
[1739997549345,83.0,168.81,168.79,15.18251611]
[1739997549771,83.0,168.81,168.78,15.18251611]
[1739997550266,98.18251611,168.81,168.75,5.9256]
[1739997550461,98.18251611,168.8,168.74,7.9052]
[1739997550769,98.18251611,168.8,168.74,29.01391611]
[1739997550770,83.0,168.79,168.74,29.01391611]
[1739997551336,83.0,168.79,168.74,13.8314]
[1739997551553,98.18251611,168.79,168.73,0.063]
[1739997551751,98.18251611,168.79,168.73,5.9895]
[1739997551968,15.18251611,168.78,168.73,5.9895]
[1739997552266,83.0,168.77,168.73,21.17201611]
[1739997552472,83.0,168.77,168.74,15.18251611]
[1739997552671,83.0,168.77,168.75,15.18251611]
[1739997553550,83.0,168.77,168.73,0.063]
[1739997553768,83.0,168.77,168.75,15.18251611]
[1739997553955,83.0,168.77,168.76,15.18251611]
[1739997554551,83.0,168.77,168.76,21.10801611]
[1739997555872,83.0,168.77,168.73,15.24551611]
[1739997556056,83.0,168.77,168.73,0.063]
[1739997556374,83.0,168.76,168.73,0.063]
[1739997556559,98.18251611,168.75,168.73,0.063]
[1739997557673,83.0,168.74,168.73,0.063]
[1739997558949,98.18251611,168.74,168.73,0.063]
[1739997559253,33.83216497,168.74,168.73,0.063]
[1739997560253,19.78251611,168.75,168.73,0.063]
[1739997560960,15.18251611,168.74,168.73,0.063]
[1739997561574,33.83216497,168.74,168.73,0.063]
[1739997563055,15.18251611,168.74,168.73,0.063]
[1739997563279,19.78251611,168.75,168.73,0.063]
[1739997563866,15.18251611,168.74,168.73,0.063]
[1739997564675,39.75836497,168.74,168.73,0.063]
[1739997564851,33.83216497,168.74,168.73,0.063]
[1739997565171,15.18251611,168.74,168.73,0.063]
[1739997567884,33.83216497,168.74,168.73,0.063]
[1739997568172,18.64964886,168.74,168.73,0.063]
[1739997568378,33.83216497,168.74,168.73,0.063]
[1739997568760,18.64964886,168.74,168.73,0.063]
[1739997570083,18.67964886,168.74,168.73,0.063]
[1739997570881,137.33,168.74,168.73,0.063]
[1739997571286,0.03,168.74,168.73,15.24551611]
[1739997573075,0.03,168.74,168.73,0.063]
[1739997573384,0.03,168.74,168.73,15.24551611]
[1739997573583,0.03,168.74,168.73,0.063]
[1739997576185,15.21251611,168.74,168.73,0.063]
[1739997577266,0.03,168.74,168.73,0.063]
[1739997577885,83.03,168.74,168.73,0.063]
[1739997580577,0.03,168.74,168.73,35.24551611]
[1739997580894,0.03,168.77,168.73,42.97621611]
[1739997581066,0.03,168.77,168.76,15.18251611]
[1739997582091,0.03,168.77,168.76,21.10801611]
[1739997584198,0.03,168.77,168.76,5.9255]
[1739997584366,0.03,168.77,168.76,21.10801611]
[1739997587002,0.03,168.77,168.76,20.90801611]
[1739997592899,0.0001,168.77,168.76,120.25766497]
[1739997593073,83.0,168.85,168.79,20.0]
[1739997593273,0.03,168.86,168.83,15.18251611]
[1739997593711,0.03,168.86,168.84,15.18251611]
[1739997595290,0.03,168.86,168.85,5.9224]
[1739997597505,0.03,168.86,168.85,21.10491611]
[1739997598410,83.0,168.99,168.9,20.0]
[1739997598584,83.0,168.99,168.9,35.18251611]
[1739997598903,15.18251611,168.98,168.9,35.18251611]
[1739997599289,98.18251611,168.99,168.9,41.10311611]
[1739997599505,83.0,168.99,168.93,15.18251611]
[1739997601419,83.0,168.99,168.93,21.10211611]
[1739997602018,221.8795,169.02,168.93,21.10211611]
[1739997602220,221.8795,169.02,168.97,20.0]
[1739997602221,220.3,169.02,168.97,20.0]
[1739997602530,83.0,169.02,168.98,15.18251611]
[1739997603720,83.0,169.02,168.97,35.18251611]
[1739997604110,83.0,169.02,168.97,41.10051611]
[1739997604308,83.0,169.02,168.98,15.18251611]
[1739997604605,83.0,169.02,168.97,41.10051611]
[1739997605524,83.0,169.02,168.97,20.0]
[1739997605719,15.18251611,169.0,168.94,95.88251611]
[1739997606025,15.18251611,168.98,168.93,5.9195]
[1739997606321,15.18251611,168.98,168.95,15.18251611]
[1739997606322,83.0,168.98,168.95,15.18251611]
[1739997606621,83.0,168.98,168.96,15.18251611]
[1739997606927,83.0,169.02,168.97,15.18251611]
[1739997607103,83.0,169.02,168.94,0.063]
[1739997607104,83.03,169.02,168.99,15.18251611]
[1739997607309,83.03,169.02,168.98,15.18251611]
[1739997607642,83.03,169.02,168.97,15.18251611]
[1739997607796,83.03,169.02,168.97,21.10041611]
[1739997608208,83.03,169.02,168.98,15.18251611]
[1739997609122,83.03,169.02,168.97,21.10041611]
[1739997609721,15.18251611,169.0,168.94,0.063]
[1739997610021,83.03,169.02,168.94,21.16471611]
[1739997610022,15.18251611,169.01,168.94,21.16471611]
[1739997610225,15.18251611,169.01,168.95,15.18251611]
[1739997610828,15.18251611,168.99,168.94,0.063]
[1739997613017,83.0,169.0,168.96,15.18251611]
[1739997613207,15.21251611,169.02,168.99,15.18251611]
[1739997613208,83.03,169.02,168.99,15.18251611]
[1739997613407,83.03,169.02,168.98,15.18251611]
[1739997614230,83.03,169.02,168.98,21.10001611]
[1739997615328,0.03,169.02,169.0,15.18251611]
[1739997616442,0.03,169.02,168.97,41.10061611]
[1739997617532,0.03,169.02,168.97,25.9181]
[1739997617718,0.03,169.02,168.97,41.10061611]
[1739997618827,15.18251611,168.99,168.94,5.9821]
[1739997619516,83.0,169.01,168.94,0.063]
[1739997619517,15.18251611,168.98,168.94,0.063]
[1739997619833,15.18251611,168.99,168.94,0.063]
[1739997620032,98.18251611,169.0,168.94,21.16471611]
[1739997620333,83.0,169.0,168.97,15.18251611]
[1739997621922,83.0,169.0,168.96,15.18251611]
[1739997622126,104.09971611,169.0,168.94,0.063]
[1739997622832,104.09971611,169.0,168.94,15.24551611]
[1739997623033,83.0,169.0,168.95,15.18251611]
[1739997623408,83.0,169.0,168.94,0.063]
[1739997623638,83.0,169.0,168.97,15.18251611]
[1739997624218,83.0,169.0,168.96,15.18251611]
[1739997624427,83.0,169.0,168.95,15.18251611]
[1739997625142,83.0,169.0,168.95,21.10131611]
[1739997625434,83.0,169.0,168.94,0.063]
[1739997625435,104.09971611,169.0,168.94,0.063]
[1739997625618,15.18251611,168.98,168.94,0.063]
[1739997626940,15.18251611,168.99,168.94,0.063]
[1739997627442,15.18251611,168.99,168.94,5.9822]
[1739997627619,104.09971611,169.0,168.94,5.9822]
[1739997627821,98.18251611,169.0,168.94,5.9822]
[1739997628244,83.0,169.0,168.94,41.16471611]
[1739997628931,83.0,169.0,168.95,15.18251611]
[1739997629118,83.0,169.0,168.96,5.9185]
[1739997629443,83.0,169.0,168.95,21.10121611]
[1739997629830,98.18251611,169.0,168.94,35.24551611]
[1739997630031,104.09961611,169.0,168.94,35.24551611]
[1739997630226,104.09961611,169.0,168.94,20.063]
[1739997630426,83.0,168.99,168.94,20.063]
[1739997631344,83.0,168.99,168.94,25.9821]
[1739997632548,98.18251611,168.99,168.94,20.063]
[1739997633248,104.10001611,168.99,168.94,20.063]
[1739997634040,98.18251611,168.99,168.94,25.9822]
[1739997634330,83.0,168.99,168.95,15.18251611]
[1739997635447,83.0,168.99,168.96,21.10101611]
[1739997635763,83.0,168.99,168.95,21.10121611]
[1739997636263,83.0,168.99,168.94,25.9822]
[1739997638657,83.0,168.99,168.94,41.16471611]
[1739997642155,83.0,168.99,168.94,25.9822]
[1739997642534,83.03,168.99,168.94,25.9822]
[1739997642735,83.03,168.99,168.94,41.16471611]
[1739997643045,83.03,168.99,168.95,15.18251611]
[1739997643348,83.03,168.99,168.94,41.16471611]
[1739997644557,83.03,168.99,168.94,35.24551611]
[1739997645053,83.03,168.99,168.94,41.16461611]
[1739997648559,90.5396,168.99,168.94,0.063]
[1739997648758,15.18251611,168.98,168.94,0.063]
[1739997649935,99.80451611,168.99,168.94,0.063]
[1739997650231,105.72201611,168.99,168.94,0.063]
[1739997650849,15.18251611,168.98,168.94,0.063]
[1739997652843,15.18251611,168.96,168.94,0.063]
[1739997653560,98.18251611,168.95,168.94,0.063]
[1739997654149,83.0,168.95,168.94,0.063]
[1739997654974,87.6,168.98,168.94,15.24551611]
[1739997655155,83.0,168.98,168.94,15.24551611]
[1739997655701,83.0,168.98,168.95,15.18251611]
[1739997655859,0.03,168.99,168.96,15.18251611]
[1739997656258,0.03,168.99,168.95,15.18251611]
[1739997656473,0.03,168.99,168.94,0.063]
[1739997657083,15.21251611,168.99,168.94,0.063]
[1739997657249,15.18251611,168.97,168.94,0.063]
[1739997657871,15.18251611,168.96,168.94,0.063]
[1739997658565,15.18251611,168.97,168.94,0.063]
[1739997659176,83.0,168.98,168.94,0.063]
[1739997660756,88.9179,168.98,168.94,0.063]
[1739997661077,15.18251611,168.96,168.94,0.063]
[1739997661279,21.10131611,168.96,168.94,0.063]
[1739997661874,83.0,168.95,168.94,0.063]
[1739997662178,98.18251611,168.95,168.94,0.063]
[1739997662766,152.48251611,168.95,168.94,0.063]
[1739997662952,172.13216497,168.95,168.94,0.063]
[1739997663151,173.13216497,168.95,168.94,0.063]
[1739997663371,179.05106497,168.95,168.94,0.063]
[1739997663575,18.64964886,168.93,168.83,93.9]
[1739997663878,15.18251611,168.86,168.83,93.9]
[1739997664070,15.18251611,168.86,168.81,5.9237]
[1739997664472,15.18251611,168.85,168.81,5.9237]
[1739997664775,15.18251611,168.85,168.79,21.10691611]
[1739997664953,15.18251611,168.84,168.79,5.9244]
[1739997665767,33.83216497,168.88,168.79,21.10691611]
[1739997665768,15.18251611,168.85,168.79,21.10691611]
[1739997666858,15.18251611,168.84,168.78,15.18251611]
[1739997667072,15.18251611,168.83,168.77,21.17041611]
[1739997667280,15.18251611,168.84,168.77,21.17041611]
[1739997667484,14.68251611,168.84,168.77,21.17041611]
[1739997667976,15.18251611,168.81,168.77,0.063]
[1739997669671,15.18251611,168.8,168.77,0.063]
[1739997669872,83.0,168.79,168.77,0.063]
[1739997670074,83.0,168.78,168.77,0.063]
[1739997671161,158.40731611,168.78,168.77,0.063]
[1739997671375,152.48251611,168.78,168.77,0.063]
[1739997673663,137.3,168.78,168.77,0.063]
[1739997674966,15.18251611,168.8,168.77,0.063]
[1739997675579,137.3,168.81,168.77,0.063]
[1739997676287,147.822,168.86,168.79,15.18251611]
[1739997676493,15.18251611,168.85,168.79,15.18251611]
[1739997676993,15.18251611,168.84,168.77,0.063]
[1739997677207,15.18251611,168.83,168.77,15.24551611]
[1739997677370,15.18251611,168.83,168.78,5.9248]
[1739997677991,15.18251611,168.84,168.78,21.10731611]
[1739997678294,15.18251611,168.85,168.78,21.10731611]
[1739997678491,15.18251611,168.84,168.78,21.10731611]
[1739997678978,147.8221,168.86,168.78,21.10731611]
[1739997678979,15.18251611,168.85,168.79,15.18251611]
[1739997679302,83.0,168.9,168.84,15.18251611]
[1739997679476,83.0,168.9,168.88,15.18251611]
[1739997679798,83.0,168.93,168.89,15.18251611]
[1739997680097,83.0,168.93,168.9,15.18251611]
[1739997680599,83.0,168.93,168.89,15.18251611]
[1739997681377,83.0,168.93,168.9,5.9206]
[1739997682088,83.0,168.93,168.89,21.10341611]
[1739997682289,83.0,168.93,168.87,21.10421611]
[1739997682493,83.0,168.93,168.89,15.18251611]
[1739997682682,83.0,168.93,168.9,15.18251611]
[1739997683011,83.0,168.93,168.89,15.18251611]
[1739997683197,83.0,168.93,168.87,20.7259]
[1739997683497,83.0,168.93,168.92,15.18251611]
[1739997683697,0.03,168.95,168.92,15.18251611]
[1739997683872,0.03,168.95,168.93,15.18251611]
[1739997684201,0.03,168.95,168.94,15.18251611]
[1739997685401,0.03,168.95,168.94,21.10171611]
[1739997692985,0.03,168.95,168.94,15.18251611]
[1739997693182,0.03,168.95,168.92,15.18251611]
[1739997693491,0.03,168.95,168.89,101.80331611]
[1739997694600,83.0,168.94,168.89,21.10331611]
[1739997695814,83.0,168.94,168.9,15.18251611]
[1739997696990,83.0,168.94,168.91,15.18251611]
[1739997697502,83.0,168.94,168.9,15.18251611]
[1739997697695,83.0,168.94,168.89,15.18251611]
[1739997697907,83.0,168.94,168.9,5.9206]
[1739997698114,83.0,168.94,168.9,21.10311611]
[1739997698423,99.83071611,168.93,168.87,5.9217]
[1739997698616,83.0,168.92,168.87,21.10421611]
[1739997699619,83.0,168.92,168.91,15.18251611]
[1739997699818,0.03,168.95,168.91,15.18251611]
[1739997700012,0.03,168.95,168.94,15.18251611]
[1739997701212,0.03,168.95,168.93,15.18251611]
[1739997701720,0.03,168.95,168.94,15.18251611]
[1739997701897,0.03,168.95,168.94,21.10171611]
[1739997708248,0.03,168.95,168.94,5.9192]
[1739997708428,0.03,168.95,168.94,21.10171611]
[1739997708617,0.03,168.95,168.94,15.18251611]
[1739997708821,0.03,168.95,168.92,15.18251611]
[1739997709005,0.03,168.95,168.91,15.18251611]
[1739997709329,83.0,168.94,168.91,15.18251611]
[1739997709541,83.0,168.93,168.89,15.18251611]
[1739997709828,83.0,168.93,168.88,5.921]
[1739997709994,83.0,168.93,168.88,21.10351611]
[1739997711701,83.0,168.93,168.88,5.921]
[1739997712353,83.0,168.93,168.88,21.10351611]
[1739997713538,83.0,168.92,168.88,21.10351611]
[1739997715522,83.0,168.92,168.91,15.18251611]
[1739997716452,0.03,168.95,168.91,35.18251611]
[1739997716624,0.03,168.95,168.94,15.18251611]
[1739997717123,0.03,168.95,168.94,21.10171611]
[1739997720029,0.03,168.95,168.94,36.28423222]
[1739997720254,0.03,168.99,168.97,20.0]
[1739997720551,0.03,168.99,168.98,15.18251611]
[1739997721956,0.03,168.99,168.98,21.10031611]
[1739997724539,0.03,168.99,168.97,15.18251611]
[1739997724742,0.03,168.99,168.96,5.9184]
[1739997724938,0.03,168.99,168.95,15.18251611]
[1739997725859,0.03,168.99,168.98,15.18251611]
[1739997726640,0.03,168.99,168.97,15.18251611]
[1739997726832,0.03,168.99,168.93,20.7181]
[1739997727034,0.03,168.99,168.95,15.24551611]
[1739997727237,0.03,168.99,168.95,0.063]
[1739997727466,15.18251611,168.97,168.95,0.063]
[1739997727638,83.0,168.96,168.95,0.063]
[1739997728068,83.0,168.96,168.95,15.24551611]
[1739997729145,0.03,168.99,168.95,15.24551611]
[1739997729338,0.03,168.99,168.96,15.18251611]
[1739997729538,15.18251611,168.98,168.95,0.063]
[1739997729760,15.18251611,168.97,168.95,0.063]
[1739997730155,15.18251611,168.98,168.95,0.063]
[1739997730353,19.79251611,168.99,168.95,0.063]
[1739997730871,15.21251611,168.99,168.95,0.063]
[1739997731171,83.0,168.98,168.95,0.063]
[1739997731573,83.0,168.98,168.95,15.24551611]
[1739997732031,83.0,168.98,168.95,0.063]
[1739997733063,88.9178,168.98,168.95,0.063]
[1739997733277,104.10031611,168.98,168.95,0.063]
[1739997733639,83.0,168.98,168.95,15.24551611]
[1739997733961,0.03,168.99,168.96,15.18251611]
[1739997734169,0.03,168.99,168.95,15.24551611]
[1739997734461,0.03,168.99,168.96,15.18251611]
[1739997736170,0.03,168.99,168.95,0.063]
[1739997737341,83.0,168.98,168.95,0.063]
[1739997738473,104.10041611,168.98,168.95,0.063]
[1739997738650,83.0,168.98,168.95,0.063]
[1739997740565,0.03,168.99,168.97,15.18251611]
[1739997740765,0.03,168.99,168.98,15.18251611]
[1739997740948,0.03,168.99,168.98,33.83216497]
[1739997742173,0.03,168.99,168.98,39.74996497]
[1739997742371,0.03,169.02,169.01,20.0]
[1739997742573,0.03,169.02,169.01,62.87800648]
[1739997743373,0.03,169.02,169.01,44.22835762]
[1739997744282,0.03,169.02,169.01,50.14515762]
[1739997744463,0.03,169.02,169.01,68.79480648]
[1739997744661,0.03,169.02,169.01,44.22835762]
[1739997745173,0.03,169.02,169.01,50.14515762]
[1739997745367,0.03,169.02,169.01,68.79480648]
[1739997746476,0.03,169.02,169.01,50.14515762]
[1739997746681,0.03,169.02,169.01,68.79480648]
[1739997747566,0.03,169.02,169.01,50.14515762]
[1739997748083,0.03,169.02,168.96,24.22835762]
[1739997748084,0.03,169.02,168.94,108.6776]
[1739997748387,0.03,169.02,169.0,24.22835762]
[1739997749081,0.03,169.02,169.01,24.22835762]
[1739997749783,0.03,169.02,169.01,42.87800648]
[1739997750561,0.03,169.02,169.01,48.79480648]
[1739997751782,0.03,169.02,169.01,42.87800648]
[1739997751988,0.03,169.02,169.01,20.0]
[1739997752391,0.03,169.02,169.01,50.14515762]
[1739997753300,0.03,169.02,169.01,68.79480648]
[1739997757283,0.03,169.02,169.01,44.22835762]
[1739997757597,0.03,169.02,169.01,50.14515762]
[1739997758590,0.03,169.02,169.01,68.79480648]
[1739997761593,0.03,169.02,169.01,62.87800648]
[1739997762184,0.03,169.02,169.01,68.79480648]
[1739997762697,0.03,169.02,169.01,62.87800648]
[1739997764384,0.03,169.02,169.01,68.79480648]
[1739997764589,0.03,169.02,169.01,59.71387566]
[1739997766498,0.03,169.03,169.02,20.31524886]
[1739997766682,0.03,169.03,169.02,55.19010246]
[1739997766883,0.03,169.03,169.02,120.74267566]
[1739997767602,0.03,169.03,169.02,33.79707566]
[1739997767899,0.03,169.03,169.02,39.71347566]
[1739997768802,0.03,169.03,169.02,33.79707566]
[1739997770110,0.03,169.03,169.02,39.71347566]
[1739997770316,0.03,169.03,169.02,33.79707566]
[1739997771391,0.03,169.03,169.02,39.71347566]
[1739997772113,0.03,169.03,169.02,33.79707566]
[1739997772615,0.03,169.03,169.0,15.1474268]
[1739997772828,0.03,169.03,169.02,15.1474268]
[1739997773417,0.03,169.03,169.02,39.71347566]
[1739997773728,0.03,169.03,169.02,120.41347566]
[1739997774402,0.03,169.03,169.02,120.47647566]
[1739997775303,0.03,169.03,169.02,114.56007566]
[1739997776593,0.03,169.03,169.02,120.47647566]
[1739997777191,0.03,169.03,169.02,114.56007566]
[1739997777897,0.03,169.03,169.02,80.763]
[1739997778227,0.03,169.03,169.02,101.8268268]
[1739997778522,0.03,169.03,169.02,120.47647566]
[1739997778910,0.03,169.03,169.02,39.77647566]
[1739997779291,1.0,169.0,168.99,0.063]
[1739997779491,1.3032,168.92,168.89,5.939]
[1739997779696,5.921,168.89,168.87,36.96571212]
[1739997779928,15.1474268,168.88,168.87,36.96571212]
[1739997780525,174.65279196,168.91,168.87,36.96571212]